bitfinex-derivatives/quotes_SOLF0:USTF0_20250714
["timestamp","ask_amount","ask_price","bid_price","bid_amount"]
[1752477930180,3.19091937,165.98,165.96,6.05858882]
[1752477930376,3.19091937,165.98,165.97,6.05858882]
[1752477931082,9.21431937,165.98,165.97,6.05858882]
[1752477931584,3.19091937,165.98,165.97,6.05858882]
[1752477931981,177.23091937,165.98,165.97,6.05858882]
[1752477932283,177.23091937,165.98,165.97,6.05842056]
[1752477932482,174.04,165.98,165.97,12.08212056]
[1752477933781,174.04,165.98,165.97,6.05842056]
[1752477937985,174.04,165.98,165.97,12.08212056]
[1752477938785,174.04,165.98,165.97,6.05842056]
[1752477938986,176.08491792,165.98,165.97,6.05842056]
[1752477939578,182.10821792,165.98,165.97,6.05842056]
[1752477940881,6.025,165.94,165.88,5.04382981]
[1752477941081,6.025,165.94,165.87,2.04491792]
[1752477941082,2.04491792,165.91,165.87,2.04491792]
[1752477941281,2.04491792,165.92,165.91,6.0256]
[1752477941880,2.04491792,165.93,165.92,6.0252]
[1752477942990,174.0,165.94,165.93,6.0251]
[1752477943182,174.0,165.94,165.88,3.19657104]
[1752477943687,174.0,165.94,165.93,6.0251]
[1752477944481,174.0,165.94,165.88,5.04382981]
[1752477944677,3.19657104,165.91,165.87,5.04382981]
[1752477944877,3.19657104,165.91,165.84,5.04382981]
[1752477945082,9.22337104,165.89,165.85,6.0279]
[1752477945291,3.19657104,165.89,165.85,6.0279]
[1752477945592,6.0272,165.88,165.84,6.0283]
[1752477946593,6.0272,165.88,165.81,110.21727368]
[1752477946594,3.19657104,165.89,165.81,110.21727368]
[1752477947285,9.22347104,165.89,165.83,6.0286]
[1752477947492,9.22347104,165.89,165.81,110.21727368]
[1752477947689,3.19657104,165.89,165.81,110.21727368]
[1752477947889,3.19657104,165.87,165.84,6.0284]
[1752477948392,6.0277,165.86,165.83,6.0287]
[1752477948591,3.19657104,165.87,165.83,6.0287]
[1752477948788,3.19657104,165.87,165.8,3.19657104]
[1752477948982,3.19657104,165.85,165.82,6.029]
[1752477949186,3.19657104,165.85,165.76,8.24040085]
[1752477949383,5.03124239,165.93,165.76,3.19657104]
[1752477949588,3.19657104,165.85,165.76,3.19657104]
[1752477950086,3.19657104,165.85,165.81,6.0293]
[1752477950389,175.12,165.87,165.76,3.19657104]
[1752477950390,3.19657104,165.83,165.76,3.19657104]
[1752477950591,3.19657104,165.83,165.81,6.0294]
[1752477953195,3.19657104,165.83,165.8,6.0298]
[1752477953889,3.19657104,165.81,165.74,174.92]
[1752477954095,3.19657104,165.81,165.69,5.04382981]
[1752477954293,6.0303,165.79,165.67,5.04382981]
[1752477954497,3.19657104,165.78,165.7,3.19657104]
[1752477954792,9.22717104,165.78,165.69,3.19657104]
[1752477954998,3.19657104,165.76,165.69,3.19657104]
[1752477955498,3.19657104,165.76,165.75,6.0316]
[1752477955993,9.22507104,165.84,165.68,3.19657104]
[1752477956193,3.19657104,165.82,165.73,3.19657104]
[1752477957895,3.19657104,165.82,165.79,6.0299]
[1752477958604,3.19657104,165.82,165.8,6.0298]
[1752477959096,3.19657104,165.85,165.81,6.0292]
[1752477959304,6.0278,165.86,165.79,3.19657104]
[1752477959695,6.0281,165.85,165.78,3.19657104]
[1752477960102,6.0281,165.85,165.8,6.0298]
[1752477960401,6.0284,165.84,165.8,6.0298]
[1752477960597,3.19657104,165.86,165.8,6.0298]
[1752477960802,3.19657104,165.82,165.75,3.19657104]
[1752477961606,9.22577104,165.82,165.75,3.19657104]
[1752477961802,3.19657104,165.82,165.79,6.0301]
[1752477962002,3.19657104,165.83,165.68,3.19657104]
[1752477962205,3.19657104,165.83,165.75,3.19657104]
[1752477962405,3.19657104,165.81,165.73,3.19657104]
[1752477962907,6.0301,165.8,165.76,6.0311]
[1752477963302,6.0301,165.8,165.72,3.19657104]
[1752477963803,3.19657104,165.81,165.74,3.19657104]
[1752477963999,3.19657104,165.81,165.68,3.19657104]
[1752477964204,3.19657104,165.81,165.74,3.19657104]
[1752477964413,9.22607104,165.81,165.74,3.19657104]
[1752477964613,3.19657104,165.81,165.78,6.0303]
[1752477965106,3.19657104,165.81,165.76,6.0312]
[1752477965313,3.19657104,165.81,165.68,3.19657104]
[1752477965609,187.9127,165.9,165.77,6.0306]
[1752477965811,3.19657104,165.82,165.77,6.0306]
[1752477966003,6.0295,165.81,165.77,6.0306]
[1752477966212,6.0295,165.81,165.78,6.0305]
[1752477966915,6.0299,165.8,165.77,6.0308]
[1752477967509,6.0296,165.81,165.77,6.0308]
[1752477968414,6.0299,165.8,165.77,6.0308]
[1752477969216,6.0303,165.79,165.75,6.0313]
[1752477969412,3.19657104,165.8,165.73,3.19657104]
[1752477969614,3.19657104,165.8,165.68,3.19657104]
[1752477969915,6.0304,165.79,165.72,3.19657104]
[1752477970312,3.19657104,165.8,165.72,3.19657104]
[1752477970513,6.0307,165.78,165.72,3.19657104]
[1752477970912,6.0307,165.78,165.74,6.0318]
[1752477971217,3.19657104,165.8,165.74,6.0318]
[1752477971607,3.19657104,165.84,165.65,520.8]
[1752477971608,3.19657104,165.78,165.71,3.19657104]
[1752477971819,6.0312,165.77,165.71,3.19657104]
[1752477972022,3.19657104,165.78,165.7,3.19657104]
[1752477972316,6.031,165.77,165.7,3.19657104]
[1752477972715,3.19657104,165.78,165.7,3.19657104]
[1752477972921,6.0297,165.81,165.74,3.19657104]
[1752477973621,3.19657104,165.82,165.76,3.19657104]
[1752477973622,6.0292,165.82,165.76,3.19657104]
[1752477973817,524.29657104,165.84,165.79,6.03]
[1752477974013,6.0288,165.83,165.76,3.19657104]
[1752477974214,6.0288,165.83,165.8,6.0298]
[1752477975526,521.1,165.84,165.77,3.19657104]
[1752477976026,182.4875,165.87,165.81,3.19657104]
[1752477976229,176.46,165.87,165.81,3.19657104]
[1752477976429,3.19657104,165.9,165.83,3.19657104]
[1752477976623,524.31657104,165.92,165.86,6.0274]
[1752477977022,524.31657104,165.92,165.83,3.19657104]
[1752477977332,521.12,165.92,165.85,3.19657104]
[1752477977826,6.0252,165.93,165.87,3.19657104]
[1752477978033,3.19657104,165.95,165.87,3.19657104]
[1752477978223,6.0248,165.94,165.87,3.19657104]
[1752477978425,3.19657104,165.95,165.87,3.19657104]
[1752477978620,6.025,165.94,165.87,3.19657104]
[1752477979228,3.19657104,165.95,165.77,17.10552981]
[1752477979429,3.19657104,165.95,165.86,3.19657104]
[1752477979829,3.19657104,165.97,165.88,3.19657104]
[1752477980131,3.19657104,165.97,165.9,3.19657104]
[1752477980832,3.19657104,165.97,165.94,6.0246]
[1752477981024,176.56,165.98,165.9,3.19657104]
[1752477981226,176.56,165.98,165.92,3.19657104]
[1752477981533,176.56,165.98,165.95,6.0241]
[1752477982733,176.56,165.98,165.96,6.024]
[1752477983933,176.56,165.98,165.95,6.0243]
[1752477985330,176.56,165.98,165.94,6.0246]
[1752477985534,176.56,165.98,165.93,3.19657104]
[1752477986737,176.56,165.98,165.95,6.0241]
[1752477987439,176.56,165.98,165.96,6.0239]
[1752477987628,176.56,165.98,165.84,8.24040085]
[1752477987832,176.56,165.98,165.93,3.19657104]
[1752477988032,176.56,165.98,165.95,6.0241]
[1752477988932,176.56,165.98,165.96,6.024]
[1752477989138,176.56,165.98,165.93,3.19657104]
[1752477989536,176.56,165.98,165.96,6.024]
[1752477989836,176.56,165.98,165.91,3.19657104]
[1752477990236,176.56,165.98,165.93,6.0251]
[1752477990737,176.56,165.98,165.94,6.0247]
[1752477991337,176.56,165.98,165.93,6.025]
[1752477991738,176.56,165.98,165.91,3.19657104]
[1752477992143,182.5834,165.98,165.94,6.0245]
[1752477992938,6.0237,165.97,165.93,6.025]
[1752477993139,176.56,165.98,165.91,3.19657104]
[1752477993847,176.56,165.98,165.93,3.19657104]
[1752477995746,176.02,165.99,165.93,3.19657104]
[1752477996849,176.02,165.99,165.96,6.0237]
[1752477997451,175.96,165.99,165.97,6.0236]
[1752477997644,175.96,165.99,165.93,3.19657104]
[1752477998149,175.96,165.99,165.96,6.0237]
[1752477998443,175.9,165.99,165.96,6.0237]
[1752477999347,175.9,165.99,165.93,3.19657104]
[1752477999348,521.1,166.0,165.84,3.19657104]
[1752477999554,3.19657104,166.03,165.97,3.19657104]
[1752477999747,175.88,166.02,165.99,6.0227]
[1752477999950,175.88,166.02,165.95,3.19657104]
[1752478000246,181.9019,166.02,165.98,6.0231]
[1752478000648,175.88,166.02,165.95,3.19657104]
[1752478000851,175.88,166.02,165.97,6.0236]
[1752478000852,6.0224,166.01,165.97,6.0236]
[1752478001251,6.0224,166.01,165.95,3.19657104]
[1752478001450,175.88,166.02,165.98,6.0232]
[1752478002649,175.88,166.02,165.95,3.19657104]
[1752478003156,181.902,166.02,165.98,6.023]
[1752478003354,175.88,166.02,165.95,3.19657104]
[1752478003655,175.78,166.02,165.97,3.19657104]
[1752478004155,175.78,166.02,165.99,6.0227]
[1752478004947,175.78,166.02,166.0,6.0225]
[1752478007648,181.8019,166.02,165.99,6.0228]
[1752478008259,175.78,166.02,165.99,6.0228]
[1752478009065,181.802,166.02,165.98,6.0232]
[1752478009554,175.78,166.02,165.95,3.19657104]
[1752478009755,175.78,166.02,165.97,3.19657104]
[1752478010145,175.78,166.02,165.99,6.0228]
[1752478011158,181.8018,166.02,165.99,6.0228]
[1752478012458,175.78,166.02,166.0,6.0225]
[1752478013653,175.78,166.02,165.99,6.0228]
[1752478013854,175.78,166.02,165.97,3.19657104]
[1752478014459,3.19657104,166.07,165.99,3.19657104]
[1752478014661,175.76,166.04,166.01,6.022]
[1752478015459,175.76,166.04,166.02,6.0217]
[1752478016257,175.76,166.04,165.99,3.19657104]
[1752478016854,175.76,166.04,165.92,8.2138994]
[1752478016855,175.76,166.04,166.02,6.0218]
[1752478017154,175.76,166.04,166.01,3.19657104]
[1752478017557,175.76,166.04,166.02,6.0216]
[1752478019761,526.6198,166.08,166.01,3.19657104]
[1752478019961,3.19657104,166.11,166.03,3.19657104]
[1752478020165,175.7,166.1,166.03,3.19657104]
[1752478020364,6.0199,166.08,166.04,6.0211]
[1752478020569,175.7,166.1,166.03,3.19657104]
[1752478021066,6.0197,166.08,166.04,6.021]
[1752478021266,175.7,166.1,166.02,3.19657104]
[1752478021469,3.19657104,166.07,166.0,3.19657104]
[1752478021662,175.66,166.06,166.0,3.19657104]
[1752478021862,181.6806,166.06,166.02,6.0218]
[1752478022366,175.66,166.06,166.02,6.0218]
[1752478022567,181.6805,166.06,166.02,6.0218]
[1752478022963,6.0208,166.05,166.02,6.0218]
[1752478023371,175.66,166.06,165.98,3.19657104]
[1752478023669,6.0209,166.05,165.98,3.19657104]
[1752478023871,6.0209,166.05,166.01,6.022]
[1752478024364,181.6805,166.06,166.01,6.022]
[1752478024566,175.66,166.06,165.96,5.01732836]
[1752478024765,175.66,166.06,166.0,3.19657104]
[1752478025168,175.66,166.06,166.02,6.0216]
[1752478025568,175.66,166.06,166.0,3.19657104]
[1752478026671,175.66,166.06,166.03,6.0213]
[1752478027268,175.66,166.06,166.04,6.021]
[1752478027962,175.66,166.06,166.05,6.0207]
[1752478028170,1.04814542,166.13,166.02,3.19657104]
[1752478028370,3.19657104,166.1,166.02,3.19657104]
[1752478028576,9.21577104,166.1,166.02,3.19657104]
[1752478029172,9.21577104,166.1,166.05,6.0204]
[1752478029367,6.0194,166.09,166.05,6.0204]
[1752478029983,6.0197,166.08,166.04,6.021]
[1752478031077,6.0197,166.08,166.05,6.0207]
[1752478031481,6.0194,166.09,166.05,6.0207]
[1752478032081,6.0197,166.08,166.02,3.19657104]
[1752478032281,3.19657104,166.1,166.02,3.19657104]
[1752478032784,6.0194,166.09,166.05,6.0205]
[1752478033172,9.21557104,166.1,166.06,6.0204]
[1752478033576,3.19657104,166.1,166.06,6.0204]
[1752478034881,3.19657104,166.1,166.02,3.19657104]
[1752478035674,3.19657104,166.1,165.98,5.01732836]
[1752478035883,3.19657104,166.08,166.0,3.19657104]
[1752478036272,6.0202,166.07,166.0,3.19657104]
[1752478037071,6.0202,166.07,166.03,6.0212]
[1752478038985,6.0202,166.07,166.04,6.0211]
[1752478039285,6.0202,166.07,166.0,3.19657104]
[1752478039675,6.0202,166.07,166.03,6.0213]
[1752478039878,6.0205,166.06,166.03,6.0213]
[1752478040481,6.0202,166.07,166.03,6.0213]
[1752478041979,6.0205,166.06,166.02,6.0217]
[1752478042187,3.19657104,166.07,166.02,6.0217]
[1752478042486,3.19657104,166.07,165.99,3.19657104]
[1752478042680,6.0206,166.06,166.02,6.0216]
[1752478043784,6.0206,166.06,166.03,6.0214]
[1752478043985,9.21667104,166.07,166.03,6.0214]
[1752478045180,9.21637104,166.08,165.99,3.19657104]
[1752478045384,9.21637104,166.08,166.01,3.19657104]
[1752478046586,6.0198,166.08,166.01,3.19657104]
[1752478046785,6.0198,166.08,166.04,6.0209]
[1752478048289,6.02,166.07,166.03,6.0213]
[1752478048991,3.19657104,166.07,165.99,5.01732836]
[1752478049189,3.19657104,166.05,165.98,5.01732836]
[1752478049388,3.19657104,166.05,165.96,3.19657104]
[1752478049589,3.19657104,166.05,166.0,6.0222]
[1752478050287,6.0215,166.03,166.0,6.0222]
[1752478051089,9.21777104,166.04,165.96,3.19657104]
[1752478051790,5.0067341,166.11,165.98,3.19657104]
[1752478051990,3.19657104,166.06,165.98,3.19657104]
[1752478052586,3.19657104,166.08,166.0,3.19657104]
[1752478053286,3.19657104,166.08,166.04,6.0211]
[1752478053693,9.21647104,166.08,166.04,6.0211]
[1752478054293,6.0201,166.07,166.04,6.0211]
[1752478055487,9.21637104,166.08,166.05,6.0207]
[1752478055790,3.19657104,166.08,166.05,6.0207]
[1752478056186,9.21627104,166.08,166.04,6.021]
[1752478056386,3.19657104,166.08,166.0,8.2138994]
[1752478056593,9.21577104,166.1,166.06,6.0203]
[1752478056991,3.19657104,166.1,166.02,8.2138994]
[1752478057293,3.19657104,166.1,166.06,6.0201]
[1752478057691,3.19657104,166.1,166.02,8.2138994]
[1752478059688,3.19657104,166.1,166.03,3.19657104]
[1752478059989,9.21557104,166.1,166.03,5.01732836]
[1752478060196,3.19657104,166.1,166.03,5.01732836]
[1752478060392,3.19657104,166.1,166.02,5.01732836]
[1752478061293,3.19657104,166.08,166.02,5.01732836]
[1752478061593,3.19657104,166.08,165.99,8.2138994]
[1752478061993,3.19657104,166.08,166.02,6.0215]
[1752478062387,3.19657104,166.08,165.99,8.2138994]
[1752478062697,6.0206,166.06,165.99,8.2138994]
[1752478063089,6.0201,166.07,166.03,6.0214]
[1752478064487,6.0201,166.07,165.99,8.2138994]
[1752478064688,9.21637104,166.08,166.0,5.01732836]
[1752478065091,9.21637104,166.08,166.04,6.0208]
[1752478065394,6.02,166.07,166.04,6.0208]
[1752478065593,3.19657104,166.08,166.04,6.0208]
[1752478065794,9.21637104,166.08,166.04,6.0208]
[1752478066090,3.19657104,166.08,166.05,6.0207]
[1752478066892,3.19657104,166.08,166.04,6.021]
[1752478067399,6.0202,166.07,166.04,6.021]
[1752478068998,9.21637104,166.08,166.05,6.0207]
[1752478069195,3.19657104,166.08,166.0,5.01732836]
[1752478070198,6.0201,166.07,166.04,6.021]
[1752478070393,3.19657104,166.06,165.99,5.01732836]
[1752478070700,3.19657104,166.03,165.98,5.01732836]
[1752478071600,3.19657104,166.03,166.01,6.022]
[1752478074497,3.19657104,166.03,166.02,6.0218]
[1752478075901,6.0209,166.05,166.02,6.0218]
[1752478076094,3.19657104,166.04,166.02,6.0218]
[1752478076497,9.21767104,166.04,166.01,6.022]
[1752478077102,3.19657104,166.04,166.02,6.0216]
[1752478078002,9.21767104,166.04,166.02,6.0216]
[1752478078198,3.19657104,166.04,165.96,8.2138994]
[1752478078401,3.19657104,166.02,165.95,129.86806295]
[1752478078798,3.19657104,166.0,165.95,129.86806295]
[1752478079100,3.19657104,166.0,165.95,124.85073459]
[1752478079301,3.19657104,166.0,165.98,6.023]
[1752478080206,9.21927104,166.0,165.97,6.0235]
[1752478080399,3.19657104,166.0,165.92,5.01732836]
[1752478080902,9.21937104,166.0,165.92,5.01732836]
[1752478081105,3.19657104,166.0,165.92,5.01732836]
[1752478081396,6.023,165.99,165.92,5.01732836]
[1752478081601,3.19657104,166.0,165.92,5.01732836]
[1752478081796,9.21947104,166.0,165.97,6.0235]
[1752478083304,9.21947104,166.0,165.96,6.0239]
[1752478083502,9.21947104,166.0,165.91,8.2138994]
[1752478083998,174.88,166.06,165.98,6.023]
[1752478083999,3.19657104,166.01,165.98,6.023]
[1752478084600,3.19657104,166.01,165.99,6.0229]
[1752478084905,3.19657104,166.01,165.93,3.19657104]
[1752478085109,3.19657104,165.99,165.93,3.19657104]
[1752478085295,3.19657104,165.99,165.98,6.0233]
[1752478085807,3.19657104,166.01,165.98,6.0233]
[1752478086001,3.19657104,166.01,165.99,6.0222]
[1752478087407,3.19657104,166.08,165.95,3.19657104]
[1752478087706,3.19657104,166.03,165.96,3.19657104]
[1752478087896,9.21767104,166.03,165.99,6.022]
[1752478088299,9.21767104,166.03,165.94,3.19657104]
[1752478089210,9.21767104,166.03,165.99,6.0221]
[1752478089609,6.0213,166.02,165.99,6.0221]
[1752478090511,9.21827104,166.01,165.93,3.19657104]
[1752478090809,3.19657104,166.01,165.93,3.19657104]
[1752478091110,9.21827104,166.01,165.97,6.0228]
[1752478091310,3.19657104,166.01,165.93,3.19657104]
[1752478091608,3.19657104,166.01,165.98,6.0227]
[1752478092211,9.21847104,166.01,165.97,6.023]
[1752478092810,9.21847104,166.01,165.93,3.19657104]
[1752478093011,3.19657104,166.01,165.98,6.0224]
[1752478093210,3.19657104,166.01,165.93,3.19657104]
[1752478093407,9.21837104,166.01,165.97,6.0228]
[1752478093606,9.21837104,166.01,165.93,3.19657104]
[1752478093809,3.19657104,166.01,165.93,3.19657104]
[1752478094213,3.19657104,166.01,165.98,6.0227]
[1752478094911,9.21827104,166.01,165.98,6.0227]
[1752478095107,9.21827104,166.01,165.97,6.0229]
[1752478095910,9.21827104,166.01,165.98,6.0226]
[1752478096112,9.21827104,166.01,165.93,3.19657104]
[1752478096113,3.19657104,166.01,165.93,3.19657104]
[1752478096704,3.19657104,166.01,165.98,6.0225]
[1752478097309,174.78,166.06,165.93,3.19657104]
[1752478097310,6.0208,166.04,165.93,3.19657104]
[1752478097510,3.19657104,166.02,165.95,3.19657104]
[1752478098207,3.19657104,166.02,166.0,6.0218]
[1752478099110,3.19657104,166.02,166.01,6.0216]
[1752478099413,3.19657104,166.04,166.01,6.0216]
[1752478099613,3.19657104,166.04,165.94,5.01732836]
[1752478099807,177.97657104,166.06,165.97,3.19657104]
[1752478100008,177.97657104,166.06,165.99,3.19657104]
[1752478100910,183.99647104,166.06,166.02,6.0211]
[1752478101513,177.97657104,166.06,166.03,6.0207]
[1752478102315,183.99637104,166.06,166.03,6.0207]
[1752478103012,183.99637104,166.06,165.99,3.19657104]
[1752478104122,183.99637104,166.06,166.02,6.0212]
[1752478104917,9.21637104,166.06,166.02,6.0212]
[1752478107615,9.21607104,166.07,166.03,6.0207]
[1752478109617,6.0195,166.07,166.03,6.0207]
[1752478112915,183.75567104,166.08,166.04,6.0203]
[1752478113120,183.75567104,166.08,166.02,3.19657104]
[1752478113121,174.54,166.08,166.02,3.19657104]
[1752478113821,174.54,166.08,166.04,3.19657104]
[1752478114223,526.3182,166.11,166.04,3.19657104]
[1752478114723,526.3182,166.11,166.07,6.0192]
[1752478115225,6.0184,166.1,166.07,6.0192]
[1752478116229,6.0184,166.1,166.06,6.0196]
[1752478117734,6.0187,166.09,166.06,6.0196]
[1752478117932,6.0187,166.09,166.05,6.02]
[1752478118629,520.3,166.11,166.05,6.02]
[1752478118829,3.19657104,166.08,166.0,3.19657104]
[1752478119035,174.5,166.07,166.0,3.19657104]
[1752478119236,6.0199,166.06,166.02,6.021]
[1752478120735,6.0202,166.05,166.02,6.021]
[1752478122235,6.0199,166.06,166.02,6.021]
[1752478123739,180.5196,166.07,166.03,6.0207]
[1752478126938,174.5,166.07,166.02,3.19657104]
[1752478127438,174.5,166.07,166.06,6.0198]
[1752478127634,523.49657104,166.11,166.02,3.19657104]
[1752478127635,174.5,166.09,166.02,3.19657104]
[1752478128033,180.519,166.09,166.04,6.0205]
[1752478128239,180.519,166.09,166.02,3.19657104]
[1752478128442,174.5,166.09,166.02,3.19657104]
[1752478129247,6.0191,166.08,165.99,5.04966322]
[1752478129445,6.0191,166.08,166.02,3.19657104]
[1752478129643,6.0191,166.08,165.99,5.04966322]
[1752478129844,6.0191,166.08,166.04,6.0204]
[1752478135649,6.0191,166.08,166.05,6.0201]
[1752478137747,183.71537104,166.09,166.02,3.19657104]
[1752478138252,174.5,166.09,166.02,3.19657104]
[1752478138755,174.5,166.09,166.07,6.0192]
[1752478138959,6.0178,166.12,166.06,3.19657104]
[1752478139349,174.48,166.13,166.08,6.0189]
[1752478139746,6.018,166.11,166.04,3.19657104]
[1752478140156,6.0184,166.1,166.07,6.0193]
[1752478140547,3.19657104,166.12,166.07,6.0193]
[1752478140954,6.0181,166.11,166.07,6.0193]
[1752478142651,6.0184,166.1,166.07,6.0193]
[1752478143058,3.19657104,166.12,166.07,6.0193]
[1752478143753,6.0181,166.11,166.07,6.0193]
[1752478144450,6.0181,166.11,166.08,6.019]
[1752478144651,521.30798759,166.16,166.05,3.19657104]
[1752478144849,520.26,166.16,166.11,3.19657104]
[1752478145049,22.08718479,166.27,166.13,9.21367104]
[1752478145050,174.46,166.19,166.13,9.21367104]
[1752478145255,3.19657104,166.17,166.08,5.04966322]
[1752478145456,3.19657104,166.15,166.06,8.24623426]
[1752478145654,3.19657104,166.15,166.08,6.019]
[1752478145854,3.19657104,166.15,166.06,3.19657104]
[1752478146458,3.19657104,166.15,166.08,3.19657104]
[1752478146864,6.0172,166.14,166.1,6.018]
[1752478148663,6.0172,166.14,166.08,3.19657104]
[1752478148664,6.0167,166.15,166.11,6.0178]
[1752478148864,174.44,166.16,166.08,3.19657104]
[1752478149066,174.44,166.16,166.05,5.04966322]
[1752478149365,6.0169,166.14,166.07,3.19657104]
[1752478150063,6.0169,166.14,166.1,6.0182]
[1752478152664,6.0173,166.13,166.09,6.0186]
[1752478156972,2.04115297,166.12,166.09,6.0186]
[1752478157375,2.04115297,166.12,166.1,6.0182]
[1752478157672,174.44,166.16,166.1,2.04115297]
[1752478157875,2.04115297,166.14,166.1,2.04115297]
[1752478158170,2.04115297,166.14,166.11,6.0179]
[1752478158976,6.0166,166.15,166.11,6.0179]
[1752478160472,6.0166,166.15,166.12,6.0176]
[1752478160667,3.18867434,166.18,166.1,3.18867434]
[1752478161277,6.0159,166.17,166.13,6.017]
[1752478162676,6.0163,166.16,166.07,5.04966322]
[1752478162879,6.0163,166.16,166.09,3.18867434]
[1752478163475,6.0163,166.16,166.12,6.0176]
[1752478163672,6.0166,166.15,166.12,6.0176]
[1752478163878,6.0166,166.15,166.09,3.18867434]
[1752478164177,3.18867434,166.16,166.1,6.0183]
[1752478164478,3.18867434,166.16,166.07,3.18867434]
[1752478164680,3.18867434,166.16,166.1,6.0181]
[1752478164977,6.0169,166.14,166.1,6.0181]
[1752478165378,3.18867434,166.18,166.09,3.18867434]
[1752478165780,3.18867434,166.18,166.12,6.0174]
[1752478166084,6.0164,166.16,166.12,6.0174]
[1752478167986,6.0166,166.15,166.12,6.0174]
[1752478169884,6.0166,166.15,166.11,6.0179]
[1752478171488,9.20497434,166.16,166.12,6.0176]
[1752478173587,6.0166,166.15,166.12,6.0176]
[1752478173790,6.0166,166.15,166.11,6.0179]
[1752478174883,6.0166,166.15,166.09,3.18867434]
[1752478175486,6.0166,166.15,166.12,6.0175]
[1752478177987,6.0166,166.15,166.11,6.0179]
[1752478178184,6.0166,166.15,166.09,3.18867434]
[1752478178588,6.0166,166.15,166.11,6.0177]
[1752478179588,3.18867434,166.16,166.07,5.04966322]
[1752478179790,3.18867434,166.16,166.07,8.23833756]
[1752478180294,6.0172,166.14,166.1,6.0183]
[1752478182691,6.0174,166.13,166.1,6.0183]
[1752478183091,8.05836732,166.13,166.1,6.0183]
[1752478183485,2.04096732,166.11,166.09,6.0186]
[1752478185090,9.20699935,166.13,166.09,6.0186]
[1752478186893,3.18959935,166.13,166.08,11.06866322]
[1752478187094,3.18959935,166.13,166.08,6.019]
[1752478187593,6.018,166.11,166.08,6.019]
[1752478189294,3.18959935,166.13,166.07,11.06906322]
[1752478189493,3.18959935,166.11,166.06,5.04966322]
[1752478189694,3.18959935,166.09,166.05,5.04966322]
[1752478189889,3.18959935,166.09,166.04,11.06996322]
[1752478189890,6.0193,166.08,166.04,11.06996322]
[1752478190091,6.0193,166.08,166.04,6.0203]
[1752478193497,6.0194,166.07,166.04,6.0203]
[1752478193695,6.0194,166.07,166.03,6.0207]
[1752478193897,6.0203,166.05,166.01,5.04966322]
[1752478194394,3.18959935,166.07,166.02,6.021]
[1752478194591,3.18959935,166.07,165.99,5.04966322]
[1752478194797,3.18959935,166.05,166.01,6.0214]
[1752478194987,3.18959935,166.05,165.98,8.23926257]
[1752478195392,3.18959935,166.05,166.01,6.0214]
[1752478195897,3.18959935,166.05,165.98,8.23926257]
[1752478196794,3.18959935,166.05,166.01,6.0213]
[1752478197694,9.20979935,166.05,166.01,6.0213]
[1752478199301,6.0205,166.04,166.0,6.0219]
[1752478201704,6.0205,166.04,166.01,6.0216]
[1752478201910,9.20979935,166.05,166.01,6.0216]
[1752478202511,9.20979935,166.05,166.0,6.0219]
[1752478202701,6.0199,166.06,165.98,3.18959935]
[1752478202908,174.36,166.13,166.0,3.18959935]
[1752478203204,174.36,166.13,165.97,5.04966322]
[1752478203205,3.18959935,166.09,166.02,3.18959935]
[1752478203410,9.20849935,166.09,166.02,3.18959935]
[1752478203708,3.18959935,166.13,166.0,8.23926257]
[1752478203914,3.18959935,166.13,166.06,3.18959935]
[1752478204614,9.20709935,166.13,166.01,5.04966322]
[1752478204909,9.20709935,166.13,166.06,3.18959935]
[1752478205106,6.0176,166.12,166.06,3.18959935]
[1752478205301,3.18959935,166.09,166.02,3.18959935]
[1752478205702,6.0185,166.1,166.02,3.18959935]
[1752478205908,3.18959935,166.11,166.03,3.18959935]
[1752478206509,3.18959935,166.09,166.04,6.0203]
[1752478207011,6.0193,166.08,166.04,6.0203]
[1752478207716,6.0194,166.07,166.04,6.0203]
[1752478207916,3.18959935,166.09,166.03,6.0208]
[1752478208211,3.18959935,166.07,166.03,6.0208]
[1752478208412,9.20929935,166.07,166.03,6.0208]
[1752478208718,9.20929935,166.07,165.99,5.04966322]
[1752478208719,3.18959935,166.07,166.02,6.0212]